[Event "*** Titled Tuesday Blitz"]
[Site "Chess.com"]
[Date "2020.04.07"]
[Round "7"]
[White "CyberneticLion"]
[Black "1977Ivan"]
[Result "0-1"]
[WhiteElo "2525"]
[BlackElo "2721"]
[TimeControl "180+1"]
[EndTime "14:16:48 PDT"]
[Termination "1977Ivan won by resignation"]

1. d4 {[%clk 0:03:00.3]} 1... Nf6 {[%clk 0:02:59.1]} 2. Bf4 {[%clk 0:03:00.2]}
2... d6 {[%clk 0:02:58.1]} 3. Nc3 {[%clk 0:02:54.8]} 3... Nbd7 {[%clk
0:02:57.7]} 4. Nf3 {[%clk 0:02:54.1]} 4... c5 {[%clk 0:02:56.8]} 5. e3 {[%clk
0:02:44.5]} 5... g6 {[%clk 0:02:56.2]} 6. Qd2 {[%clk 0:02:30.6]} 6... Bg7 {[%clk
0:02:55.6]} 7. Be2 {[%clk 0:02:28.8]} 7... O-O {[%clk 0:02:55.4]} 8. O-O {[%clk
0:02:29.1]} 8... a6 {[%clk 0:02:51.8]} 9. a4 {[%clk 0:02:18.5]} 9... b6 {[%clk
0:02:51.8]} 10. d5 {[%clk 0:02:13.4]} 10... Rb8 {[%clk 0:02:49]} 11. e4 {[%clk
0:02:11.7]} 11... b5 {[%clk 0:02:47.7]} 12. axb5 {[%clk 0:02:03.9]} 12... axb5
{[%clk 0:02:47.5]} 13. Bxb5 {[%clk 0:02:04.3]} 13... Nxe4 {[%clk 0:02:45.1]} 14.
Nxe4 {[%clk 0:02:05.2]} 14... Rxb5 {[%clk 0:02:45.1]} 15. c3 {[%clk 0:02:05.7]}
15... Nb6 {[%clk 0:02:20.9]} 16. Rfd1 {[%clk 0:01:25.3]} 16... Bb7 {[%clk
0:02:12.6]} 17. Bh6 {[%clk 0:00:31.9]} 17... Bxd5 {[%clk 0:02:11.8]} 18. Bxg7
{[%clk 0:00:30.9]} 18... Kxg7 {[%clk 0:02:11.3]} 19. c4 {[%clk 0:00:22.6]} 19...
Bxc4 {[%clk 0:02:11.3]} 20. Qc3+ {[%clk 0:00:21.6]} 20... f6 {[%clk 0:02:10.2]}
21. Ra6 {[%clk 0:00:16.7]} 21... Rb3 {[%clk 0:02:08.4]} 22. Qc2 {[%clk
0:00:13.6]} 22... Rxf3 {[%clk 0:01:57.3]} 23. Rxb6 {[%clk 0:00:12.3]} 23... Qxb6
{[%clk 0:01:56.6]} 24. gxf3 {[%clk 0:00:12.9]} 24... Bb3 {[%clk 0:01:56.4]} 25.
Qd2 {[%clk 0:00:07.2]} 25... Bxd1 {[%clk 0:01:56]} 26. Qxd1 {[%clk 0:00:08.1]}
26... Qxb2 {[%clk 0:01:55.6]} 27. Qd5 {[%clk 0:00:07.9]} 27... Qe5 {[%clk
0:01:54.5]} 28. Qb7 {[%clk 0:00:06.7]} 28... h6 {[%clk 0:01:50.2]} 0-1

[Event "*** Titled Tuesday Blitz"]
[Site "Chess.com"]
[Date "2020.04.07"]
[Round "7"]
[White "jonaszmb"]
[Black "DonPreuss"]
[Result "1-0"]
[WhiteElo "2400"]
[BlackElo "2174"]
[TimeControl "180+1"]
[EndTime "14:16:48 PDT"]
[Termination "jonaszmb won by resignation"]

1. d4 {[%clk 0:03:00.9]} 1... Nc6 {[%clk 0:02:59.1]} 2. e4 {[%clk 0:02:59.7]}
2... e5 {[%clk 0:02:59]} 3. Nf3 {[%clk 0:03:00.1]} 3... exd4 {[%clk 0:02:58.5]}
4. Bc4 {[%clk 0:03:00.5]} 4... d6 {[%clk 0:02:50.9]} 5. Nxd4 {[%clk 0:02:50]}
5... Nxd4 {[%clk 0:02:49.4]} 6. Qxd4 {[%clk 0:02:50.9]} 6... Be6 {[%clk
0:02:49.5]} 7. O-O {[%clk 0:02:46.6]} 7... Bxc4 {[%clk 0:02:49.1]} 8. Qxc4
{[%clk 0:02:46.6]} 8... Be7 {[%clk 0:02:47.9]} 9. Qb5+ {[%clk 0:02:44.8]} 9...
Qd7 {[%clk 0:02:41.7]} 10. Qxb7 {[%clk 0:02:44.8]} 10... Rd8 {[%clk 0:02:38.4]}
11. Qxa7 {[%clk 0:02:43.5]} 11... Nf6 {[%clk 0:02:37.7]} 12. Nc3 {[%clk
0:02:40.5]} 12... O-O {[%clk 0:02:38]} 13. Qd4 {[%clk 0:02:38.8]} 13... Nh5
{[%clk 0:02:36.3]} 14. Nd5 {[%clk 0:02:33.5]} 14... Rfe8 {[%clk 0:02:11.2]} 15.
Nxe7+ {[%clk 0:02:31.2]} 15... Rxe7 {[%clk 0:02:11.1]} 16. Bg5 {[%clk
0:02:25.3]} 16... Re6 {[%clk 0:02:09]} 17. Bxd8 {[%clk 0:02:24.6]} 17... Qxd8
{[%clk 0:02:08.8]} 18. a4 {[%clk 0:02:15.1]} 18... Qg5 {[%clk 0:02:07.5]} 19.
Qe3 {[%clk 0:01:58.2]} 19... Nf4 {[%clk 0:02:06.8]} 20. g3 {[%clk 0:01:57.3]}
20... Nh3+ {[%clk 0:01:43.7]} 21. Kg2 {[%clk 0:01:52.8]} 21... Qh5 {[%clk
0:01:39.6]} 22. Qf3 {[%clk 0:01:37.8]} 22... Qh6 {[%clk 0:01:35]} 23. a5 {[%clk
0:01:35.5]} 23... Rg6 {[%clk 0:01:16.6]} 24. a6 {[%clk 0:01:20]} 24... Nf4+
{[%clk 0:01:13.8]} 25. Kh1 {[%clk 0:01:19]} 25... Qh3 {[%clk 0:00:46.9]} 26.
Qxf4 {[%clk 0:01:14.7]} 26... Rh6 {[%clk 0:00:45.5]} 27. Qxh6 {[%clk 0:01:12.5]}
27... gxh6 {[%clk 0:00:40.8]} 28. a7 {[%clk 0:01:12.4]} 28... Qg2+ {[%clk
0:00:37]} 1-0

[Event "*** Titled Tuesday Blitz"]
[Site "Chess.com"]
[Date "2020.04.07"]
[Round "7"]
[White "manmanlai1"]
[Black "ShahMatKanal"]
[Result "1-0"]
[WhiteElo "2313"]
[BlackElo "2548"]
[TimeControl "180+1"]
[EndTime "14:16:52 PDT"]
[Termination "manmanlai1 won on time"]

1. e4 {[%clk 0:03:00.9]} 1... c5 {[%clk 0:02:57.9]} 2. Nf3 {[%clk 0:03:00.5]}
2... d6 {[%clk 0:02:55.2]} 3. Bb5+ {[%clk 0:02:59.9]} 3... Nd7 {[%clk
0:02:51.8]} 4. d4 {[%clk 0:02:58.7]} 4... cxd4 {[%clk 0:02:50.1]} 5. Qxd4 {[%clk
0:02:59.6]} 5... a6 {[%clk 0:02:46.2]} 6. Bxd7+ {[%clk 0:02:59.4]} 6... Bxd7
{[%clk 0:02:45.9]} 7. O-O {[%clk 0:02:59.9]} 7... Bc6 {[%clk 0:02:28.7]} 8. Bg5
{[%clk 0:02:55.2]} 8... Qa5 {[%clk 0:01:38.7]} 9. c4 {[%clk 0:02:49.3]} 9... Qc5
{[%clk 0:01:21]} 10. Qd3 {[%clk 0:02:45]} 10... h6 {[%clk 0:01:16.5]} 11. Be3
{[%clk 0:02:42.2]} 11... Qh5 {[%clk 0:01:10.9]} 12. Nc3 {[%clk 0:02:40.5]} 12...
Nf6 {[%clk 0:01:07.6]} 13. Nd5 {[%clk 0:02:39]} 13... Rc8 {[%clk 0:00:37.7]} 14.
Bd4 {[%clk 0:02:28.7]} 14... e5 {[%clk 0:00:30.2]} 15. Be3 {[%clk 0:02:13]}
15... Nd7 {[%clk 0:00:24]} 16. Nd2 {[%clk 0:02:10.3]} 16... g5 {[%clk
0:00:20.6]} 17. Rfd1 {[%clk 0:02:04.7]} 17... Qg6 {[%clk 0:00:19]} 18. Nf1
{[%clk 0:02:02.7]} 18... Nc5 {[%clk 0:00:16.6]} 19. Bxc5 {[%clk 0:02:01.2]}
19... dxc5 {[%clk 0:00:16.8]} 20. Nc7+ {[%clk 0:01:56.2]} 20... Ke7 {[%clk
0:00:16.6]} 21. Nd5+ {[%clk 0:01:56.3]} 21... Ke8 {[%clk 0:00:15.1]} 22. Ng3
{[%clk 0:01:56]} 22... Bd6 {[%clk 0:00:05.5]} 23. Nf5 {[%clk 0:01:51.4]} 23...
Bb8 {[%clk 0:00:04.1]} 24. Nde7 {[%clk 0:01:46.4]} 24... Qf6 {[%clk 0:00:03.6]}
25. Nxc8 {[%clk 0:01:45.4]} 1-0

[Event "*** Titled Tuesday Blitz"]
[Site "Chess.com"]
[Date "2020.04.07"]
[Round "7"]
[White "Alex_Terzi"]
[Black "valeriocarnicelli"]
[Result "1-0"]
[WhiteElo "2418"]
[BlackElo "2578"]
[TimeControl "180+1"]
[EndTime "14:16:57 PDT"]
[Termination "Alex_Terzi won by resignation"]

1. e4 {[%clk 0:03:00.9]} 1... c5 {[%clk 0:02:59.6]} 2. Nc3 {[%clk 0:03:00.5]}
2... Nc6 {[%clk 0:02:59.5]} 3. Bb5 {[%clk 0:03:00.6]} 3... Nd4 {[%clk 0:02:59]}
4. Nf3 {[%clk 0:03:00.4]} 4... Nxb5 {[%clk 0:02:58.5]} 5. Nxb5 {[%clk
0:03:01.3]} 5... g6 {[%clk 0:02:54.2]} 6. d4 {[%clk 0:03:00.2]} 6... a6 {[%clk
0:02:53.4]} 7. Nc3 {[%clk 0:02:59.2]} 7... Bg7 {[%clk 0:02:50.8]} 8. Be3 {[%clk
0:02:57.8]} 8... Nf6 {[%clk 0:02:47.6]} 9. dxc5 {[%clk 0:02:57]} 9... O-O {[%clk
0:02:46.3]} 10. O-O {[%clk 0:02:56]} 10... Qc7 {[%clk 0:02:31.1]} 11. Bd4 {[%clk
0:02:54.6]} 11... Rd8 {[%clk 0:02:29.5]} 12. e5 {[%clk 0:02:51.9]} 12... Nh5
{[%clk 0:02:09.1]} 13. Nd5 {[%clk 0:02:50.4]} 13... Qa5 {[%clk 0:02:08.4]} 14.
Nxe7+ {[%clk 0:02:46.1]} 14... Kh8 {[%clk 0:02:07.8]} 15. Nd5 {[%clk 0:02:41]}
15... d6 {[%clk 0:01:58.5]} 16. b4 {[%clk 0:02:35.3]} 16... Qb5 {[%clk
0:01:55.1]} 17. exd6 {[%clk 0:02:27.2]} 17... Qc6 {[%clk 0:01:52.2]} 18. Bxg7+
{[%clk 0:02:23.6]} 18... Nxg7 {[%clk 0:01:53.1]} 19. Qd4 {[%clk 0:02:22.3]}
19... a5 {[%clk 0:01:48.4]} 20. b5 {[%clk 0:02:18.6]} 20... Qxb5 {[%clk
0:01:41.9]} 21. Nc7 {[%clk 0:02:18.3]} 21... Qc6 {[%clk 0:01:42.2]} 22. Nxa8
{[%clk 0:02:17.9]} 22... Bg4 {[%clk 0:01:41.1]} 23. Nc7 {[%clk 0:02:14.3]} 23...
Bxf3 {[%clk 0:01:38.3]} 24. gxf3 {[%clk 0:02:14.3]} 24... Qxf3 {[%clk
0:01:37.3]} 25. Rfe1 {[%clk 0:02:13.5]} 25... Kg8 {[%clk 0:01:31.9]} 26. Re3
{[%clk 0:02:12.7]} 26... Qc6 {[%clk 0:01:29.4]} 27. Qh4 {[%clk 0:01:59.9]} 27...
Rf8 {[%clk 0:01:26.2]} 28. Qc4 {[%clk 0:01:48.3]} 28... Nf5 {[%clk 0:01:25.5]}
29. Rae1 {[%clk 0:01:43.7]} 29... h5 {[%clk 0:01:23.7]} 30. Qd5 {[%clk
0:01:39.9]} 30... Qd7 {[%clk 0:01:22.2]} 31. Rf3 {[%clk 0:01:29]} 31... Nh4
{[%clk 0:01:20.3]} 32. Rg3 {[%clk 0:01:28.3]} 32... Nf5 {[%clk 0:01:19.5]} 33.
Re5 {[%clk 0:01:27.2]} 33... Nxg3 {[%clk 0:01:17.9]} 34. hxg3 {[%clk 0:01:26.8]}
34... h4 {[%clk 0:01:16.8]} 35. Kg2 {[%clk 0:01:20.8]} 35... hxg3 {[%clk
0:01:15.5]} 36. fxg3 {[%clk 0:01:21.1]} 36... Qa4 {[%clk 0:01:15.5]} 37. Qe4
{[%clk 0:01:11.8]} 37... Qxa2 {[%clk 0:01:13.8]} 38. d7 {[%clk 0:01:11.5]} 38...
Qa4 {[%clk 0:01:04.9]} 39. Qxa4 {[%clk 0:01:06.5]} 1-0

[Event "*** Titled Tuesday Blitz"]
[Site "Chess.com"]
[Date "2020.04.07"]
[Round "7"]
[White "Lysiak_Poltorak"]
[Black "english_player_89"]
[Result "1-0"]
[WhiteElo "2372"]
[BlackElo "2472"]
[TimeControl "180+1"]
[EndTime "14:17:02 PDT"]
[Termination "Lysiak_Poltorak won by resignation"]

1. e4 {[%clk 0:03:00.9]} 1... e5 {[%clk 0:03:00.2]} 2. Nf3 {[%clk 0:02:55.5]}
2... Nc6 {[%clk 0:02:59.9]} 3. Bc4 {[%clk 0:02:54]} 3... Bc5 {[%clk 0:02:59]} 4.
c3 {[%clk 0:02:52.2]} 4... Nf6 {[%clk 0:02:58.6]} 5. d3 {[%clk 0:02:50.1]} 5...
d6 {[%clk 0:02:58.3]} 6. O-O {[%clk 0:02:48.4]} 6... a6 {[%clk 0:02:58.5]} 7.
Bb3 {[%clk 0:02:45.9]} 7... Ba7 {[%clk 0:02:57.8]} 8. Nbd2 {[%clk 0:02:43.1]}
8... h6 {[%clk 0:02:56.1]} 9. Re1 {[%clk 0:02:41.1]} 9... O-O {[%clk 0:02:55.3]}
10. Nf1 {[%clk 0:02:38.6]} 10... Be6 {[%clk 0:02:55.1]} 11. Bc2 {[%clk 0:02:36]}
11... Re8 {[%clk 0:02:53]} 12. Ng3 {[%clk 0:02:34.2]} 12... d5 {[%clk
0:02:51.8]} 13. exd5 {[%clk 0:02:25]} 13... Bxd5 {[%clk 0:02:50.6]} 14. Qe2
{[%clk 0:02:18]} 14... Qd6 {[%clk 0:02:48.7]} 15. Nf5 {[%clk 0:02:00]} 15... Qd7
{[%clk 0:02:47.4]} 16. N3h4 {[%clk 0:01:49.5]} 16... e4 {[%clk 0:02:38.5]} 17.
Bxh6 {[%clk 0:01:27.4]} 17... gxh6 {[%clk 0:02:19.9]} 18. Qd2 {[%clk 0:01:26.1]}
18... e3 {[%clk 0:02:15.2]} 19. fxe3 {[%clk 0:01:23.1]} 19... Be4 {[%clk
0:02:03.4]} 20. Qf2 {[%clk 0:01:14.8]} 20... Bxf5 {[%clk 0:01:52.8]} 21. Nxf5
{[%clk 0:01:15.6]} 21... Nh7 {[%clk 0:01:23.6]} 22. Qg3+ {[%clk 0:01:10.3]}
22... Ng5 {[%clk 0:01:21.1]} 23. Nxh6+ {[%clk 0:01:09.8]} 23... Kh7 {[%clk
0:01:19.9]} 24. Qxg5 {[%clk 0:01:08.6]} 24... Rg8 {[%clk 0:00:58.3]} 25. d4+
{[%clk 0:01:05.1]} 25... Kh8 {[%clk 0:00:55.2]} 26. Nxf7+ {[%clk 0:01:01.1]} 1-0

[Event "*** Titled Tuesday Blitz"]
[Site "Chess.com"]
[Date "2020.04.07"]
[Round "7"]
[White "Mr_Sinigami"]
[Black "MasterKroket"]
[Result "1-0"]
[WhiteElo "2612"]
[BlackElo "2468"]
[TimeControl "180+1"]
[EndTime "14:17:03 PDT"]
[Termination "Mr_Sinigami won by resignation"]

1. d4 {[%clk 0:03:00.9]} 1... Nf6 {[%clk 0:02:59.9]} 2. Nf3 {[%clk 0:03:01.3]}
2... e6 {[%clk 0:03:00.3]} 3. Bf4 {[%clk 0:03:01.7]} 3... c5 {[%clk 0:03:00]} 4.
e3 {[%clk 0:03:01.9]} 4... b6 {[%clk 0:02:59.3]} 5. Nbd2 {[%clk 0:03:01]} 5...
Be7 {[%clk 0:02:56.9]} 6. h3 {[%clk 0:03:00.3]} 6... O-O {[%clk 0:02:57]} 7. c3
{[%clk 0:02:59.5]} 7... Bb7 {[%clk 0:02:56.9]} 8. Bd3 {[%clk 0:02:59.7]} 8... d6
{[%clk 0:02:56.3]} 9. O-O {[%clk 0:02:57.5]} 9... Nc6 {[%clk 0:02:56.1]} 10. Qe2
{[%clk 0:02:54.5]} 10... a6 {[%clk 0:02:54.8]} 11. a4 {[%clk 0:02:52.1]} 11...
Qc7 {[%clk 0:02:53.2]} 12. Bh2 {[%clk 0:02:46.7]} 12... e5 {[%clk 0:02:49.1]}
13. dxe5 {[%clk 0:02:44.1]} 13... Nxe5 {[%clk 0:02:47.8]} 14. Nxe5 {[%clk
0:02:43.3]} 14... dxe5 {[%clk 0:02:47.7]} 15. e4 {[%clk 0:02:42.5]} 15... Rfd8
{[%clk 0:02:43.1]} 16. Nc4 {[%clk 0:02:42.2]} 16... Nd7 {[%clk 0:02:40.8]} 17.
f4 {[%clk 0:02:27.7]} 17... Bf6 {[%clk 0:02:27.4]} 18. fxe5 {[%clk 0:02:04.7]}
18... Nxe5 {[%clk 0:02:26.3]} 19. Rxf6 {[%clk 0:02:03.7]} 19... gxf6 {[%clk
0:02:24]} 20. Nxe5 {[%clk 0:02:02.8]} 20... fxe5 {[%clk 0:02:23]} 21. Rf1 {[%clk
0:02:00.7]} 21... Rd7 {[%clk 0:01:48.4]} 22. Bxe5 {[%clk 0:01:49.4]} 22... Qxe5
{[%clk 0:01:43.9]} 23. Qg4+ {[%clk 0:01:49.4]} 23... Kh8 {[%clk 0:01:41.2]} 24.
Qxd7 {[%clk 0:01:49.4]} 24... Bxe4 {[%clk 0:01:21.9]} 25. Bxe4 {[%clk
0:01:40.5]} 25... Qxe4 {[%clk 0:01:22.3]} 26. Qxf7 {[%clk 0:01:34.4]} 26... Rg8
{[%clk 0:01:18]} 27. Qf6+ {[%clk 0:01:33.3]} 27... Rg7 {[%clk 0:01:18.1]} 28.
Rf3 {[%clk 0:01:27.9]} 28... Qe2 {[%clk 0:01:08.3]} 29. Rf2 {[%clk 0:01:21.9]}
29... Qe1+ {[%clk 0:00:57.6]} 30. Kh2 {[%clk 0:01:21.4]} 30... Qe3 {[%clk
0:00:55.7]} 31. Rf3 {[%clk 0:01:18.3]} 31... Qe2 {[%clk 0:00:54.3]} 32. Rg3
{[%clk 0:01:15.7]} 1-0

[Event "*** Titled Tuesday Blitz"]
[Site "Chess.com"]
[Date "2020.04.07"]
[Round "7"]
[White "vugarrasulov"]
[Black "praveenb2002"]
[Result "0-1"]
[WhiteElo "2757"]
[BlackElo "2642"]
[TimeControl "180+1"]
[EndTime "14:17:04 PDT"]
[Termination "praveenb2002 won by resignation"]

1. e4 {[%clk 0:03:00.9]} 1... c5 {[%clk 0:02:59.8]} 2. Nf3 {[%clk 0:03:00.5]}
2... Nc6 {[%clk 0:02:59]} 3. c3 {[%clk 0:02:59.2]} 3... Nf6 {[%clk 0:02:56.3]}
4. e5 {[%clk 0:02:59]} 4... Nd5 {[%clk 0:02:56.6]} 5. Bc4 {[%clk 0:02:58.4]}
5... Nb6 {[%clk 0:02:54.6]} 6. Bb3 {[%clk 0:02:58.8]} 6... d5 {[%clk 0:02:53.8]}
7. exd6 {[%clk 0:02:58.5]} 7... Qxd6 {[%clk 0:02:53.4]} 8. Na3 {[%clk
0:02:58.9]} 8... Bg4 {[%clk 0:02:49.9]} 9. h3 {[%clk 0:02:51.6]} 9... Bh5 {[%clk
0:02:45.6]} 10. O-O {[%clk 0:02:51.4]} 10... e6 {[%clk 0:02:44.1]} 11. d4 {[%clk
0:02:39.4]} 11... cxd4 {[%clk 0:02:44]} 12. g4 {[%clk 0:02:39.8]} 12... Bg6
{[%clk 0:02:42.8]} 13. Nb5 {[%clk 0:02:40.2]} 13... Qd8 {[%clk 0:02:41.9]} 14.
Bf4 {[%clk 0:02:37.5]} 14... Rc8 {[%clk 0:02:42.1]} 15. Nfxd4 {[%clk 0:02:24.4]}
15... Nxd4 {[%clk 0:02:42.3]} 16. Qxd4 {[%clk 0:02:20]} 16... Qxd4 {[%clk
0:02:41.3]} 17. Nxd4 {[%clk 0:02:20.4]} 17... Bc5 {[%clk 0:02:40.7]} 18. Nb5
{[%clk 0:02:16.6]} 18... Bd3 {[%clk 0:02:25.7]} 19. Nc7+ {[%clk 0:02:07.3]}
19... Rxc7 {[%clk 0:02:25.4]} 20. Bxc7 {[%clk 0:02:06.6]} 20... Bxf1 {[%clk
0:02:23.9]} 21. Kxf1 {[%clk 0:02:05.7]} 21... Ke7 {[%clk 0:02:23.6]} 22. Rd1
{[%clk 0:02:04.5]} 22... Rc8 {[%clk 0:02:22.1]} 23. Bf4 {[%clk 0:02:02.4]} 23...
a5 {[%clk 0:02:19.6]} 24. a3 {[%clk 0:02:00.9]} 24... a4 {[%clk 0:02:18.9]} 25.
Ba2 {[%clk 0:02:01.1]} 25... Rd8 {[%clk 0:02:13]} 26. Rxd8 {[%clk 0:01:54.1]}
26... Kxd8 {[%clk 0:02:13.9]} 27. Ke2 {[%clk 0:01:54.4]} 27... Nd5 {[%clk
0:02:13.2]} 28. Bxd5 {[%clk 0:01:37.8]} 28... exd5 {[%clk 0:02:13.1]} 29. Be3
{[%clk 0:01:38.3]} 29... Be7 {[%clk 0:02:03.7]} 30. Kd3 {[%clk 0:01:36.9]} 30...
Kd7 {[%clk 0:02:03.9]} 31. f4 {[%clk 0:01:34.1]} 31... Kc6 {[%clk 0:02:01.6]}
32. f5 {[%clk 0:01:33.9]} 32... g6 {[%clk 0:01:57.6]} 33. Bc1 {[%clk 0:01:25.9]}
33... gxf5 {[%clk 0:01:52.7]} 34. gxf5 {[%clk 0:01:25.5]} 34... Bf6 {[%clk
0:01:53.3]} 35. Be3 {[%clk 0:01:24.1]} 35... h5 {[%clk 0:01:53]} 36. Bd4 {[%clk
0:01:18.3]} 36... Bxd4 {[%clk 0:01:43.6]} 37. Kxd4 {[%clk 0:01:15.8]} 37... Kd6
{[%clk 0:01:44.1]} 38. c4 {[%clk 0:00:48.9]} 38... dxc4 {[%clk 0:01:37.5]} 39.
Kxc4 {[%clk 0:00:48.9]} 39... Ke5 {[%clk 0:01:37.8]} 40. Kb5 {[%clk 0:00:49.5]}
40... Kxf5 {[%clk 0:01:37.5]} 41. Kxa4 {[%clk 0:00:50.4]} 41... Ke4 {[%clk
0:01:37.4]} 42. Kb5 {[%clk 0:00:44]} 42... f5 {[%clk 0:01:34.7]} 43. Kb6 {[%clk
0:00:44.3]} 43... f4 {[%clk 0:01:35.3]} 44. a4 {[%clk 0:00:44.6]} 44... f3
{[%clk 0:01:35.5]} 45. a5 {[%clk 0:00:45.5]} 45... f2 {[%clk 0:01:35.9]} 46.
Kxb7 {[%clk 0:00:46.4]} 46... f1=Q {[%clk 0:01:36.3]} 47. a6 {[%clk 0:00:47.3]}
47... Qb5+ {[%clk 0:01:36.2]} 0-1

[Event "*** Titled Tuesday Blitz"]
[Site "Chess.com"]
[Date "2020.04.07"]
[Round "7"]
[White "MarcoRiehle"]
[Black "VladDobrov"]
[Result "0-1"]
[WhiteElo "2712"]
[BlackElo "2869"]
[TimeControl "180+1"]
[EndTime "14:17:17 PDT"]
[Termination "VladDobrov won by resignation"]

1. e4 {[%clk 0:03:00.9]} 1... e5 {[%clk 0:02:59.3]} 2. Nf3 {[%clk 0:02:59.8]}
2... Nc6 {[%clk 0:02:59.3]} 3. Bc4 {[%clk 0:02:59.8]} 3... Bc5 {[%clk
0:02:58.6]} 4. c3 {[%clk 0:02:59.8]} 4... Nf6 {[%clk 0:02:58.2]} 5. d4 {[%clk
0:02:58]} 5... exd4 {[%clk 0:02:58]} 6. cxd4 {[%clk 0:02:58.9]} 6... Bb4+ {[%clk
0:02:58.1]} 7. Nbd2 {[%clk 0:02:59.2]} 7... d5 {[%clk 0:02:57.7]} 8. exd5 {[%clk
0:02:59.1]} 8... Nxd5 {[%clk 0:02:58.1]} 9. O-O {[%clk 0:02:59.3]} 9... O-O
{[%clk 0:02:57.4]} 10. a3 {[%clk 0:02:59]} 10... Be7 {[%clk 0:02:53.7]} 11. Re1
{[%clk 0:02:57.5]} 11... Be6 {[%clk 0:02:51]} 12. Ne4 {[%clk 0:02:52.6]} 12...
Ne3 {[%clk 0:02:47.4]} 13. Bxe3 {[%clk 0:02:42.7]} 13... Bxc4 {[%clk 0:02:47.9]}
14. Rc1 {[%clk 0:02:43.1]} 14... Bd5 {[%clk 0:02:42.2]} 15. Nc3 {[%clk
0:02:40.9]} 15... Bf6 {[%clk 0:02:41.7]} 16. Ne5 {[%clk 0:02:36]} 16... Ne7
{[%clk 0:02:34.7]} 17. Ng4 {[%clk 0:02:28.8]} 17... Kh8 {[%clk 0:02:06.2]} 18.
Nxf6 {[%clk 0:02:24.2]} 18... gxf6 {[%clk 0:02:07.1]} 19. Qh5 {[%clk 0:02:17]}
19... Rg8 {[%clk 0:02:00.7]} 20. g3 {[%clk 0:02:15.3]} 20... c6 {[%clk
0:01:56.3]} 21. Bf4 {[%clk 0:01:59.6]} 21... Qd7 {[%clk 0:01:54.3]} 22. Be5
{[%clk 0:01:53.1]} 22... Rg6 {[%clk 0:01:47.5]} 23. Bxf6+ {[%clk 0:01:25.2]}
23... Rxf6 {[%clk 0:01:48.4]} 24. Qe5 {[%clk 0:01:25.5]} 24... Qe6 {[%clk
0:01:36.8]} 25. Qc7 {[%clk 0:01:24.8]} 25... Qf5 {[%clk 0:01:36.1]} 26. Re2
{[%clk 0:01:14.1]} 26... Ng6 {[%clk 0:01:25.6]} 27. Rce1 {[%clk 0:01:08.5]}
27... Rg8 {[%clk 0:01:24.3]} 28. Nxd5 {[%clk 0:01:05.3]} 28... cxd5 {[%clk
0:01:19.8]} 29. Re8 {[%clk 0:00:46.8]} 29... Qxf2+ {[%clk 0:01:18.4]} 30. Kh1
{[%clk 0:00:47.1]} 30... Rxe8 {[%clk 0:01:11.2]} 31. Rxe8+ {[%clk 0:00:48]}
31... Kg7 {[%clk 0:01:11.8]} 32. Qc1 {[%clk 0:00:47.5]} 32... Rc6 {[%clk
0:00:58.9]} 0-1

[Event "*** Titled Tuesday Blitz"]
[Site "Chess.com"]
[Date "2020.04.07"]
[Round "7"]
[White "indfraeng"]
[Black "beccrajoy"]
[Result "1-0"]
[WhiteElo "2234"]
[BlackElo "1785"]
[TimeControl "180+1"]
[EndTime "14:17:20 PDT"]
[Termination "indfraeng won by resignation"]

1. d4 {[%clk 0:03:00.9]} 1... d5 {[%clk 0:02:58.1]} 2. c4 {[%clk 0:02:57.5]}
2... c6 {[%clk 0:02:57.8]} 3. cxd5 {[%clk 0:02:54.4]} 3... cxd5 {[%clk
0:02:56.5]} 4. Bf4 {[%clk 0:02:55.3]} 4... Nf6 {[%clk 0:02:54.9]} 5. e3 {[%clk
0:02:54]} 5... Nc6 {[%clk 0:02:54.4]} 6. Nc3 {[%clk 0:02:53.8]} 6... a6 {[%clk
0:02:51.2]} 7. Bd3 {[%clk 0:02:51.3]} 7... Bg4 {[%clk 0:02:50.7]} 8. f3 {[%clk
0:02:50.8]} 8... Bh5 {[%clk 0:02:48.6]} 9. Nge2 {[%clk 0:02:51.2]} 9... e6
{[%clk 0:02:47.3]} 10. O-O {[%clk 0:02:51.5]} 10... Bd6 {[%clk 0:02:41.5]} 11.
Qb3 {[%clk 0:02:50.9]} 11... Rb8 {[%clk 0:02:33.2]} 12. Bxd6 {[%clk 0:02:47.6]}
12... Qxd6 {[%clk 0:02:31]} 13. Nf4 {[%clk 0:02:47.5]} 13... Bg6 {[%clk
0:02:27.2]} 14. Rfc1 {[%clk 0:02:44]} 14... Bxd3 {[%clk 0:02:11.7]} 15. Nxd3
{[%clk 0:02:42.1]} 15... e5 {[%clk 0:02:11.9]} 16. dxe5 {[%clk 0:02:40.7]} 16...
Nxe5 {[%clk 0:02:10.7]} 17. Nxe5 {[%clk 0:02:39.6]} 17... Qxe5 {[%clk
0:02:10.7]} 18. Re1 {[%clk 0:02:33.9]} 18... O-O {[%clk 0:02:09]} 19. Rad1
{[%clk 0:02:34.2]} 19... Rfd8 {[%clk 0:02:03.7]} 20. Rd3 {[%clk 0:02:34]} 20...
Rd7 {[%clk 0:02:00.6]} 21. Red1 {[%clk 0:02:33.5]} 21... Rbd8 {[%clk 0:02:01]}
22. Qa4 {[%clk 0:02:27.8]} 22... Qe6 {[%clk 0:01:52.8]} 23. Ne2 {[%clk
0:02:22.5]} 23... b5 {[%clk 0:01:52.1]} 24. Qd4 {[%clk 0:02:19.6]} 24... h6
{[%clk 0:01:47.5]} 25. Nf4 {[%clk 0:02:18.8]} 25... Qc6 {[%clk 0:01:47.4]} 26.
Qe5 {[%clk 0:02:09.8]} 26... Re8 {[%clk 0:01:31.9]} 27. Qc3 {[%clk 0:02:07]}
27... Qxc3 {[%clk 0:01:29.4]} 28. Rxc3 {[%clk 0:02:07.9]} 28... b4 {[%clk
0:01:23.8]} 29. Rcd3 {[%clk 0:02:04.9]} 29... a5 {[%clk 0:01:20.6]} 30. Kf2
{[%clk 0:02:03.4]} 30... Red8 {[%clk 0:01:18.3]} 31. a3 {[%clk 0:02:00.2]} 31...
g5 {[%clk 0:01:12.2]} 32. Ne2 {[%clk 0:01:54.9]} 32... g4 {[%clk 0:01:06]} 33.
axb4 {[%clk 0:01:51]} 33... axb4 {[%clk 0:01:02.3]} 34. Nf4 {[%clk 0:01:50.7]}
34... h5 {[%clk 0:00:48.6]} 35. R1d2 {[%clk 0:01:49.1]} 35... Kf8 {[%clk
0:00:46.1]} 36. Rd4 {[%clk 0:01:39.8]} 36... b3 {[%clk 0:00:42.7]} 37. R4d3
{[%clk 0:01:37.7]} 37... Rc8 {[%clk 0:00:37.5]} 38. Rxb3 {[%clk 0:01:35.5]} 1-0